[Event "GER-ch Youth U10 2020"]
[Site "Willingen"]
[Date "2020.10.30"]
[Round "6.17"]
[White "Bangert, Jonas"]
[Black "Ahlers, Quentin"]
[Result "1-0"]
[ECO "D35"]
[WhiteElo "1549"]
[BlackElo "1425"]
[Annotator "NA RC"]
[PlyCount "151"]
[EventDate "2020.10.27"]
[EventType "swiss"]
[EventRounds "7"]
[EventCountry "GER"]
[SourceTitle "playchess.com"]
[Source "ChessBase"]
[SourceQuality "1"]
[TimeControl "40/4500+30:900+30"]

1. d4 {[%emt 0:00:00]} d5 {[%emt 0:00:00]} 2. c4 {[%emt 0:00:00]} e6 {[%emt 0:00:00]} 3. Nc3 {[%emt 0:00:03]} Nf6 {[%emt 0:00:07]} 4. Bf4 {[%emt 0:01:23]} Bb4 {[%emt 0:00:40]} 5. a3 {[%emt 0:00:27]} Bxc3+ {[%emt 0:00:28]} 6. bxc3 {[%emt 0:00:09]} O-O {[%emt 0:00:16]} 7. e3 {[%emt 0:00:20]} Ne4 {[%emt 0:00:34]} 8. Qc2 {[%emt 0:02:51]} Nc6 {[%emt 0:01:03]} 9. Bd3 {[%emt 0:00:34]} Nf6 {[%emt 0:01:33]} 10. Nf3 {[%emt 0:00:33]} h6 {[%emt 0:01:27]} 11. h3 {[%emt 0:01:01]} Nh5 {[%emt 0:02:44]} 12. Be5 {[%emt 0:12:14]} Nf6 {[%emt 0:01:04]} 13. O-O {[%emt 0:02:57]} b6 {[%emt 0:03:57]} 14. Bh2 {[%emt 0:02:47]} Bb7 {[%emt 0:00:21]} 15. Qe2 {[%emt 0:00:44]} Na5 {[%emt 0:02:07]} 16. cxd5 {[%emt 0:00:46]} Nxd5 {[%emt 0:02:01]} 17. Rac1 {[%emt 0:03:53]} Nc6 {[%emt 0:03:33]} 18. c4 {[%emt 0:00:57]} Nf6 {[%emt 0:01:12]} 19. Rc2 {[%emt 0:01:50]} Re8 {[%emt 0:01:40]} 20. c5 {[%emt 0:00:43]} bxc5 {[%emt 0:00:45]} 21. Rxc5 {[%emt 0:00:13]} a6 {[%emt 0:00:50]} 22. Rfc1 {[%emt 0:00:36]} Qd7 {[%emt 0:00:35]} 23. Ne5 {[%emt 0:01:15]} Nxe5 {[%emt 0:01:18]} 24. Bxe5 {[%emt 0:00:10]} Nd5 {[%emt 0:05:58]} 25. Bxc7 {[%emt 0:00:41]} Nxc7 {[%emt 0:00:24]} 26. Rxc7 {[%emt 0:00:07]} Qd5 {[%emt 0:00:36]} 27. f3 {[%emt 0:01:29]} Reb8 {[%emt 0:03:41]} 28. R1c3 {[%emt 0:04:44]} Qd6 {[%emt 0:01:45]} 29. Qc2 {[%emt 0:02:29]} Qd8 {[%emt 0:11:08]} 30. R3c5 {[%emt 0:13:18]} Qd6 {[%emt 0:04:16]} 31. Qc3 {[%emt 0:03:07]} g6 {[%emt 0:01:14]} 32. Kf2 {[%emt 0:00:57]} Qd8 {[%emt 0:05:56]} 33. g3 {[%emt 0:08:22]} Qf6 {[%emt 0:01:20]} 34. f4 {[%emt 0:01:00]} Qd8 {[%emt 0:00:21]} 35. d5 {[%emt 0:07:02]} exd5 {[%emt 0:03:38]} 36. Bxg6 {[%emt 0:00:43]} d4 {[%emt 0:02:40]} 37. Bxf7+ {[%emt 0:00:30]} Kf8 {[%emt 0:00:19]} 38. Qxd4 {[%emt 0:01:00]} Qxd4 {[%emt 0:00:31]} 39. exd4 {[%emt 0:00:08]} Be4 {[%emt 0:01:37]} 40. Ke3 {[%emt 0:01:09]} Bh1 {[%emt 0:01:44]} 41. h4 {[%emt 0:16:41]} Rb1 {[%emt 0:15:44]} 42. Rc1 {[%emt 0:04:53]} Rxc1 {[%emt 0:00:20]} 43. Rxc1 {[%emt 0:00:10]} Kxf7 {[%emt 0:00:10]} 44. Rxh1 {[%emt 0:00:10]} Re8+ {[%emt 0:00:14]} 45. Kf3 {[%emt 0:00:49]} Rd8 {[%emt 0:00:17]} 46. Rd1 {[%emt 0:00:11]} Rb8 {[%emt 0:00:22]} 47. Rd3 {[%emt 0:00:32]} a5 {[%emt 0:00:28]} 48. Ke4 {[%emt 0:00:42]} a4 {[%emt 0:00:26]} 49. Rc3 {[%emt 0:01:01]} Rb3 {[%emt 0:00:28]} 50. Rxb3 {[%emt 0:01:08]} axb3 {[%emt 0:00:10]} 51. Kd3 {[%emt 0:00:05]} Ke6 {[%emt 0:00:53]} 52. Kc3 {[%emt 0:00:07]} Kd5 {[%emt 0:00:22]} 53. Kxb3 {[%emt 0:00:44]} Kxd4 {[%emt 0:00:22]} 54. Kb4 {[%emt 0:00:07]} Ke4 {[%emt 0:00:35]} 55. a4 {[%emt 0:00:05]} Kd5 {[%emt 0:00:15]} 56. Kb5 {[%emt 0:00:07]} Ke4 {[%emt 0:00:12]} 57. a5 {[%emt 0:00:06]} Kf5 {[%emt 0:00:44]} 58. a6 {[%emt 0:00:07]} Kg4 {[%emt 0:00:13]} 59. a7 {[%emt 0:00:08]} Kxg3 {[%emt 0:00:13]} 60. a8=Q {[%emt 0:01:09]} Kxh4 {[%emt 0:00:07]} 61. Qg2 {[%emt 0:01:27]} h5 {[%emt 0:00:03]} 62. Qh2+ {[%emt 0:00:09]} Kg4 {[%emt 0:00:16]} 63. Kc4 {[%emt 0:00:13]} h4 {[%emt 0:00:06]} 64. Kd3 {[%emt 0:00:05]} h3 65. Ke3 {[%emt 0:00:14]} Kf5 {[%emt 0:00:48]} 66. Qxh3+ {[%emt 0:00:07]} Kf6 {[%emt 0:00:27]} 67. Qh5 {[%emt 0:00:13]} Ke6 {[%emt 0:00:16]} 68. Qg5 {[%emt 0:00:07]} Kd6 {[%emt 0:00:17]} 69. Qe5+ {[%emt 0:00:12]} Kc6 {[%emt 0:00:22]} 70. Kd4 {[%emt 0:00:15]} Kb6 {[%emt 0:00:26]} 71. Qc5+ {[%emt 0:00:06]} Kb7 {[%emt 0:00:14]} 72. Qd6 {[%emt 0:00:08]} Ka8 {[%emt 0:00:15]} 73. Qd7 {[%emt 0:00:10]} Kb8 {[%emt 0:00:15]} 74. Kc5 {[%emt 0:00:08]} Ka8 {[%emt 0:00:14]} 75. Kb6 {[%emt 0:00:08]} Kb8 {[%emt 0:00:10]} 76. Qb7# {[%emt 0:00:07]} 1-0

[Event "GER-ch Youth U10 2020"]
[Site "Willingen"]
[Date "2020.10.30"]
[Round "6.18"]
[White "Zimmer, Tim"]
[Black "Radeke, Timothy"]
[Result "0-1"]
[ECO "B72"]
[WhiteElo "1025"]
[BlackElo "1143"]
[Annotator "NA RC"]
[PlyCount "40"]
[EventDate "2020.10.27"]
[EventType "swiss"]
[EventRounds "7"]
[EventCountry "GER"]
[SourceTitle "playchess.com"]
[Source "ChessBase"]
[SourceQuality "1"]
[TimeControl "40/4500+30:900+30"]

1. e4 c5 {[%emt 0:00:00]} 2. Nf3 {[%emt 0:00:00]} d6 {[%emt 0:00:00]} 3. d4 {[%emt 0:00:00]} cxd4 {[%emt 0:00:00]} 4. Nxd4 {[%emt 0:00:27]} Nf6 {[%emt 0:00:00]} 5. Nc3 {[%emt 0:00:29]} g6 {[%emt 0:00:37]} 6. Be3 {[%emt 0:00:51]} Bg7 {[%emt 0:00:42]} 7. Bc4 Ng4 {[%emt 0:03:11]} 8. Qd2 {[%emt 0:04:00]} Nxe3 {[%emt 0:01:34]} 9. Qxe3 {[%emt 0:00:17]} O-O {[%emt 0:00:53]} 10. O-O-O {[%emt 0:00:43]} Nc6 {[%emt 0:01:18]} 11. Nxc6 {[%emt 0:00:49]} bxc6 {[%emt 0:00:15]} 12. h4 {[%emt 0:00:10]} h5 {[%emt 0:01:28]} 13. f3 {[%emt 0:20:40]} Kh7 {[%emt 0:00:53]} 14. Kb1 {[%emt 0:01:14]} Rb8 {[%emt 0:01:18]} 15. Bb3 {[%emt 0:02:41]} Qa5 {[%emt 0:01:35]} 16. Rhg1 {[%emt 0:07:44]} c5 {[%emt 0:02:15]} 17. Ka1 {[%emt 0:00:55]} Be6 {[%emt 0:00:56]} 18. Bxe6 {[%emt 0:01:41]} fxe6 {[%emt 0:00:18]} 19. g4 {[%emt 0:00:22]} Bd4 {[%emt 0:02:29]} 20. Qg5 {[%emt 0:07:32]} Bxc3 {[%emt 0:00:28]} 0-1

[Event "GER-ch Youth U10 2020"]
[Site "Willingen"]
[Date "2020.10.30"]
[Round "6.19"]
[White "Theviot, Luca"]
[Black "Bock, Leonas"]
[Result "1-0"]
[ECO "D00"]
[WhiteElo "1423"]
[BlackElo "1301"]
[Annotator "NA RC"]
[PlyCount "75"]
[EventDate "2020.10.27"]
[EventType "swiss"]
[EventRounds "7"]
[EventCountry "GER"]
[SourceTitle "playchess.com"]
[Source "ChessBase"]
[SourceQuality "1"]
[TimeControl "40/4500+30:900+30"]

1. d4 {[%emt 0:00:00]} d5 {[%emt 0:00:00]} 2. Bg5 {[%emt 0:00:00]} h6 {[%emt 0:02:26]} 3. Bh4 {[%emt 0:00:32]} g5 {[%emt 0:04:33]} 4. Bg3 {[%emt 0:00:52]} e6 {[%emt 0:06:00]} 5. e3 {[%emt 0:01:44]} Bd6 {[%emt 0:01:36]} 6. Bxd6 {[%emt 0:02:21]} Qxd6 {[%emt 0:00:08]} 7. c4 {[%emt 0:02:02]} c6 {[%emt 0:02:30]} 8. Nc3 {[%emt 0:01:26]} Nd7 {[%emt 0:01:17]} 9. Bd3 {[%emt 0:01:38]} Ngf6 {[%emt 0:01:53]} 10. Qc2 {[%emt 0:01:19]} Rg8 {[%emt 0:02:39]} 11. O-O-O {[%emt 0:04:03]} b6 {[%emt 0:01:11]} 12. Nge2 {[%emt 0:03:31]} Bb7 {[%emt 0:01:07]} 13. Kb1 {[%emt 0:03:28]} Qc7 {[%emt 0:08:48]} 14. h3 {[%emt 0:16:11]} O-O-O {[%emt 0:03:25]} 15. Rc1 {[%emt 0:02:29]} Kb8 {[%emt 0:00:25]} 16. cxd5 {[%emt 0:06:08]} exd5 {[%emt 0:01:25]} 17. Nb5 {[%emt 0:03:12]} Qc8 {[%emt 0:01:08]} 18. Qa4 {[%emt 0:01:46]} a5 {[%emt 0:01:39]} 19. b4 {[%emt 0:03:03]} Ba6 {[%emt 0:07:20]} 20. Ka1 {[%emt 0:02:21]} axb4 {[%emt 0:04:35]} 21. Rc2 {[%emt 0:09:21]} Qb7 {[%emt 0:01:37]} 22. Nd6 {[%emt 0:01:06]} b5 {[%emt 0:01:54]} 23. Nxb7 {[%emt 0:01:49]} bxa4 {[%emt 0:02:27]} 24. Bxa6 {[%emt 0:00:12]} Rc8 {[%emt 0:01:58]} 25. Nc5 {[%emt 0:01:02]} Rc7 {[%emt 0:00:35]} 26. Nxd7+ {[%emt 0:00:31]} Nxd7 {[%emt 0:00:49]} 27. Rhc1 {[%emt 0:02:50]} Ka7 {[%emt 0:01:19]} 28. Bd3 {[%emt 0:00:46]} Rgc8 {[%emt 0:02:57]} 29. Bb5 {[%emt 0:02:48]} Kb6 {[%emt 0:01:02]} 30. Bxa4 {[%emt 0:02:48]} Ra8 {[%emt 0:00:07]} 31. Rxc6+ {[%emt 0:01:16]} Rxc6 {[%emt 0:00:13]} 32. Bxc6 {[%emt 0:00:31]} Ra3 {[%emt 0:01:15]} 33. Bxd5 {[%emt 0:01:17]} Kb5 {[%emt 0:00:13]} 34. Kb2 {[%emt 0:00:46]} Nb6 {[%emt 0:00:19]} 35. Bxf7 {[%emt 0:01:07]} Na4+ {[%emt 0:00:53]} 36. Kb1 {[%emt 0:00:13]} Nc3+ {[%emt 0:01:10]} 37. Nxc3+ {[%emt 0:00:07]} bxc3 {[%emt 0:00:09]} 38. Bb3 1-0

[Event "GER-ch Youth U10 2020"]
[Site "Willingen"]
[Date "2020.10.30"]
[Round "6.20"]
[White "Sewerinow, Alexander"]
[Black "Rosenkranz, Lennard"]
[Result "1/2-1/2"]
[ECO "B90"]
[WhiteElo "1202"]
[BlackElo "1467"]
[Annotator "NA RC"]
[PlyCount "70"]
[EventDate "2020.10.27"]
[EventType "swiss"]
[EventRounds "7"]
[EventCountry "GER"]
[SourceTitle "playchess.com"]
[Source "ChessBase"]
[SourceQuality "1"]
[TimeControl "40/4500+30:900+30"]

1. e4 {[%emt 0:00:00]} c5 {[%emt 0:00:00]} 2. Nf3 {[%emt 0:00:00]} d6 {[%emt 0:00:00]} 3. d4 {[%emt 0:00:09]} cxd4 {[%emt 0:00:17]} 4. Nxd4 {[%emt 0:00:14]} Nf6 {[%emt 0:00:33]} 5. Nc3 {[%emt 0:00:06]} a6 {[%emt 0:00:09]} 6. Be3 {[%emt 0:00:20]} e6 {[%emt 0:00:42]} 7. Be2 {[%emt 0:00:09]} Qc7 {[%emt 0:00:31]} 8. f3 {[%emt 0:00:39]} b5 {[%emt 0:00:20]} 9. a3 {[%emt 0:00:15]} Bb7 {[%emt 0:00:25]} 10. Qd2 {[%emt 0:00:35]} Nbd7 {[%emt 0:01:32]} 11. O-O-O {[%emt 0:00:36]} Rc8 {[%emt 0:08:48]} 12. Rhe1 {[%emt 0:07:42]} Nb6 {[%emt 0:03:16]} 13. Ndxb5 {[%emt 0:13:10]} axb5 {[%emt 0:02:14]} 14. Nxb5 {[%emt 0:03:28]} Qd8 {[%emt 0:06:54]} 15. Nxd6+ {[%emt 0:08:46]} Bxd6 {[%emt 0:00:11]} 16. Qxd6 {[%emt 0:00:52]} Qxd6 {[%emt 0:00:09]} 17. Rxd6 {[%emt 0:00:06]} Nc4 {[%emt 0:01:20]} 18. Bxc4 {[%emt 0:01:19]} Rxc4 {[%emt 0:00:15]} 19. Red1 {[%emt 0:00:34]} O-O {[%emt 0:02:42]} 20. Bg5 {[%emt 0:03:07]} h6 {[%emt 0:07:12]} 21. Bxf6 {[%emt 0:01:06]} gxf6 {[%emt 0:00:48]} 22. Rd8 {[%emt 0:03:40]} Rxd8 {[%emt 0:00:40]} 23. Rxd8+ {[%emt 0:00:08]} Kg7 {[%emt 0:00:03]} 24. Rb8 {[%emt 0:01:36]} Ba6 {[%emt 0:03:06]} 25. Rb4 {[%emt 0:02:44]} Rc5 {[%emt 0:01:23]} 26. Ra4 {[%emt 0:05:46]} Bf1 {[%emt 0:08:18]} 27. g3 {[%emt 0:02:08]} Be2 {[%emt 0:01:21]} 28. f4 {[%emt 0:02:19]} Bd3 {[%emt 0:00:38]} 29. c3 {[%emt 0:00:33]} e5 {[%emt 0:04:44]} 30. f5 {[%emt 0:01:11]} h5 {[%emt 0:01:53]} 31. h4 {[%emt 0:00:16]} Rb5 {[%emt 0:01:29]} 32. Kd2 {[%emt 0:02:34]} Bb1 {[%emt 0:00:15]} 33. Kc1 {[%emt 0:06:30]} Bd3 {[%emt 0:03:58]} 34. Kd2 {[%emt 0:01:17]} Bf1 {[%emt 0:00:12]} 35. Rb4 {[%emt 0:00:34]} Rc5 1/2-1/2

[Event "GER-ch Youth U10 2020"]
[Site "Willingen"]
[Date "2020.10.30"]
[Round "6.21"]
[White "Mündörfer, Sebastian"]
[Black "Goldkuhle, Collin"]
[Result "1-0"]
[ECO "D36"]
[WhiteElo "1175"]
[BlackElo "1418"]
[Annotator "NA RC"]
[PlyCount "115"]
[EventDate "2020.10.27"]
[EventType "swiss"]
[EventRounds "7"]
[EventCountry "GER"]
[SourceTitle "playchess.com"]
[Source "ChessBase"]
[SourceQuality "1"]
[TimeControl "40/4500+30:900+30"]

1. d4 {[%emt 0:00:00]} d5 {[%emt 0:00:00]} 2. c4 {[%emt 0:00:00]} e6 {[%emt 0:00:00]} 3. Nc3 {[%emt 0:00:00]} c6 {[%emt 0:00:03]} 4. cxd5 {[%emt 0:00:11]} exd5 {[%emt 0:00:08]} 5. Qc2 {[%emt 0:00:42]} Nf6 {[%emt 0:01:49]} 6. Bg5 {[%emt 0:00:07]} Be7 {[%emt 0:00:14]} 7. e3 {[%emt 0:00:44]} Be6 {[%emt 0:00:23]} 8. Bd3 {[%emt 0:00:16]} Nbd7 {[%emt 0:02:25]} 9. Nge2 {[%emt 0:03:23]} h6 {[%emt 0:01:44]} 10. Bh4 {[%emt 0:00:18]} O-O {[%emt 0:07:45]} 11. Nf4 {[%emt 0:00:46]} Ng4 12. Nxe6 {[%emt 0:04:16]} fxe6 {[%emt 0:03:38]} 13. Bg3 {[%emt 0:01:42]} Bh4 {[%emt 0:00:40]} 14. O-O {[%emt 0:05:28]} Bxg3 {[%emt 0:02:43]} 15. hxg3 {[%emt 0:00:11]} Qg5 {[%emt 0:00:45]} 16. Bh7+ {[%emt 0:17:34]} Kh8 {[%emt 0:00:17]} 17. Qg6 {[%emt 0:00:12]} Qxg6 {[%emt 0:02:02]} 18. Bxg6 {[%emt 0:00:08]} Rf6 {[%emt 0:00:08]} 19. Bh5 {[%emt 0:00:29]} Nb6 {[%emt 0:02:40]} 20. Bxg4 {[%emt 0:00:30]} Nc4 {[%emt 0:00:06]} 21. Be2 {[%emt 0:01:36]} Nd6 {[%emt 0:02:54]} 22. Bd3 {[%emt 0:04:10]} Raf8 {[%emt 0:07:03]} 23. b4 {[%emt 0:01:19]} a6 {[%emt 0:00:27]} 24. a4 {[%emt 0:00:17]} Rc8 {[%emt 0:02:10]} 25. e4 {[%emt 0:03:40]} Rff8 {[%emt 0:05:54]} 26. Rfc1 {[%emt 0:01:00]} Rc7 {[%emt 0:04:33]} 27. e5 {[%emt 0:01:27]} Nf7 {[%emt 0:02:12]} 28. b5 {[%emt 0:00:13]} Rfc8 {[%emt 0:00:18]} 29. bxa6 {[%emt 0:00:19]} bxa6 {[%emt 0:00:15]} 30. Bxa6 {[%emt 0:00:23]} Ra8 {[%emt 0:00:11]} 31. Bd3 {[%emt 0:00:53]} Rac8 {[%emt 0:03:21]} 32. a5 {[%emt 0:00:55]} c5 {[%emt 0:00:25]} 33. dxc5 {[%emt 0:00:09]} Rxc5 {[%emt 0:00:07]} 34. a6 {[%emt 0:02:19]} Nxe5 {[%emt 0:00:15]} 35. Be2 {[%emt 0:00:59]} d4 {[%emt 0:01:41]} 36. Na2 {[%emt 0:02:02]} Rxc1+ {[%emt 0:00:39]} 37. Nxc1 {[%emt 0:00:35]} Nc6 {[%emt 0:01:07]} 38. Bf3 {[%emt 0:01:12]} Na7 {[%emt 0:00:20]} 39. Rb1 {[%emt 0:02:13]} e5 {[%emt 0:01:36]} 40. Nd3 {[%emt 0:02:26]} Re8 {[%emt 0:05:06]} 41. Be4 {[%emt 0:16:01]} Rc8 {[%emt 0:15:45]} 42. Rb7 {[%emt 0:00:15]} Ra8 {[%emt 0:00:24]} 43. Re7 {[%emt 0:00:22]} Rc8 {[%emt 0:00:48]} 44. Rxa7 {[%emt 0:00:07]} g5 {[%emt 0:00:15]} 45. Re7 {[%emt 0:00:22]} g4 {[%emt 0:00:09]} 46. a7 {[%emt 0:00:10]} h5 {[%emt 0:00:18]} 47. a8=Q {[%emt 0:00:15]} Rxa8 {[%emt 0:00:01]} 48. Bxa8 {[%emt 0:00:12]} h4 {[%emt 0:00:12]} 49. gxh4 {[%emt 0:00:42]} g3 {[%emt 0:00:07]} 50. fxg3 {[%emt 0:00:29]} e4 {[%emt 0:00:06]} 51. Bxe4 {[%emt 0:00:16]} Kg8 {[%emt 0:00:11]} 52. h5 {[%emt 0:00:03]} Kh8 {[%emt 0:00:06]} 53. g4 {[%emt 0:00:12]} Kg8 {[%emt 0:00:07]} 54. g5 {[%emt 0:00:04]} Kh8 {[%emt 0:00:18]} 55. h6 {[%emt 0:00:09]} Kg8 {[%emt 0:00:02]} 56. g6 {[%emt 0:00:14]} Kf8 {[%emt 0:00:03]} 57. Re5 {[%emt 0:00:21]} Kg8 {[%emt 0:00:11]} 58. Re8# 1-0

[Event "GER-ch Youth U10 2020"]
[Site "Willingen"]
[Date "2020.10.30"]
[Round "6.22"]
[White "Laux, Filip"]
[Black "Peglau, Paul David"]
[Result "1-0"]
[ECO "B30"]
[WhiteElo "1198"]
[BlackElo "1322"]
[Annotator "NA RC"]
[PlyCount "53"]
[EventDate "2020.10.27"]
[EventType "swiss"]
[EventRounds "7"]
[EventCountry "GER"]
[SourceTitle "playchess.com"]
[Source "ChessBase"]
[SourceQuality "1"]
[TimeControl "40/4500+30:900+30"]

1. e4 {[%emt 0:00:00]} c5 {[%emt 0:00:00]} 2. Nf3 {[%emt 0:00:00]} Nc6 {[%emt 0:00:00]} 3. g3 {[%emt 0:00:16]} Nf6 {[%emt 0:00:46]} 4. d3 {[%emt 0:00:21]} d6 {[%emt 0:00:40]} 5. Bg2 {[%emt 0:00:44]} Bg4 {[%emt 0:00:39]} 6. O-O {[%emt 0:00:30]} g6 {[%emt 0:00:23]} 7. c3 {[%emt 0:00:37]} Bg7 {[%emt 0:00:26]} 8. Re1 {[%emt 0:00:47]} O-O {[%emt 0:00:35]} 9. d4 {[%emt 0:00:59]} cxd4 {[%emt 0:00:31]} 10. cxd4 {[%emt 0:00:10]} Rc8 {[%emt 0:00:44]} 11. Nc3 {[%emt 0:00:40]} a6 {[%emt 0:01:47]} 12. Bf4 {[%emt 0:05:16]} Qb6 {[%emt 0:00:46]} 13. d5 {[%emt 0:03:10]} Na5 {[%emt 0:03:20]} 14. Rb1 {[%emt 0:04:15]} Nc4 {[%emt 0:01:09]} 15. Qc2 {[%emt 0:01:58]} Rc7 {[%emt 0:06:06]} 16. Nd2 {[%emt 0:08:02]} Rfc8 {[%emt 0:00:34]} 17. Bf1 {[%emt 0:03:17]} Qa5 18. Nxc4 {[%emt 0:02:06]} Rxc4 {[%emt 0:04:21]} 19. Bxc4 {[%emt 0:00:19]} Rxc4 {[%emt 0:00:08]} 20. Kg2 {[%emt 0:01:23]} b5 {[%emt 0:02:47]} 21. Qd3 {[%emt 0:02:39]} Qb4 {[%emt 0:01:54]} 22. e5 {[%emt 0:11:18]} Rd4 {[%emt 0:02:04]} 23. exf6 {[%emt 0:04:12]} Rxd3 {[%emt 0:00:18]} 24. fxe7 {[%emt 0:00:08]} Bd7 {[%emt 0:00:21]} 25. e8=Q+ Bxe8 {[%emt 0:00:16]} 26. Rxe8+ {[%emt 0:00:53]} Bf8 {[%emt 0:00:11]} 27. Bh6 {[%emt 0:00:05]} 1-0

[Event "GER-ch Youth U10 2020"]
[Site "Willingen"]
[Date "2020.10.30"]
[Round "6.23"]
[White "Conrad, Marius"]
[Black "Wolff, Calvin"]
[Result "0-1"]
[ECO "C54"]
[WhiteElo "1645"]
[BlackElo "1219"]
[Annotator "NA RC"]
[PlyCount "76"]
[EventDate "2020.10.27"]
[EventType "swiss"]
[EventRounds "7"]
[EventCountry "GER"]
[SourceTitle "playchess.com"]
[Source "ChessBase"]
[SourceQuality "1"]
[TimeControl "40/4500+30:900+30"]

1. e4 {[%emt 0:00:00]} e5 {[%emt 0:00:49]} 2. Nf3 {[%emt 0:00:00]} Nc6 {[%emt 0:00:40]} 3. Bc4 {[%emt 0:00:24]} Bc5 {[%emt 0:01:20]} 4. c3 {[%emt 0:00:27]} Nf6 {[%emt 0:00:56]} 5. d3 {[%emt 0:00:13]} O-O {[%emt 0:01:25]} 6. O-O {[%emt 0:00:32]} d6 {[%emt 0:02:18]} 7. a4 {[%emt 0:02:43]} a6 {[%emt 0:00:24]} 8. h3 {[%emt 0:01:01]} Ne7 {[%emt 0:02:27]} 9. Na3 {[%emt 0:02:06]} Ng6 {[%emt 0:01:16]} 10. Re1 {[%emt 0:02:27]} Be6 {[%emt 0:02:24]} 11. Bxe6 {[%emt 0:03:55]} fxe6 {[%emt 0:00:19]} 12. d4 {[%emt 0:00:11]} exd4 {[%emt 0:01:17]} 13. cxd4 {[%emt 0:02:05]} Bb4 {[%emt 0:01:21]} 14. Bd2 {[%emt 0:01:33]} Bxd2 {[%emt 0:00:18]} 15. Qxd2 {[%emt 0:00:08]} d5 {[%emt 0:01:45]} 16. exd5 {[%emt 0:03:54]} exd5 {[%emt 0:00:18]} 17. Ng5 {[%emt 0:02:07]} Re8 {[%emt 0:03:32]} 18. Rxe8+ {[%emt 0:01:21]} Qxe8 {[%emt 0:00:57]} 19. b3 {[%emt 0:02:02]} Qe7 {[%emt 0:00:56]} 20. Nc2 {[%emt 0:02:28]} h6 {[%emt 0:00:54]} 21. Re1 {[%emt 0:01:43]} Qd6 {[%emt 0:02:34]} 22. Nf3 {[%emt 0:06:35]} Ne4 {[%emt 0:00:21]} 23. Qc1 {[%emt 0:02:57]} Nf4 {[%emt 0:02:10]} 24. Re3 {[%emt 0:04:49]} Qg6 {[%emt 0:06:59]} 25. Nh4 {[%emt 0:11:47]} Qg5 {[%emt 0:00:24]} 26. g3 {[%emt 0:03:11]} Nxh3+ {[%emt 0:01:32]} 27. Kf1 {[%emt 0:02:39]} Rf8 {[%emt 0:02:20]} 28. f4 {[%emt 0:04:39]} Rxf4+ {[%emt 0:01:14]} 29. Ke1 {[%emt 0:06:59]} Nxg3 {[%emt 0:04:25]} 30. Kd2 {[%emt 0:06:44]} Nf1+ {[%emt 0:01:38]} 31. Kc3 {[%emt 0:01:00]} Nxe3 {[%emt 0:03:20]} 32. Qxe3 {[%emt 0:00:20]} Qxh4 {[%emt 0:00:47]} 33. Qe6+ {[%emt 0:00:45]} Kh7 {[%emt 0:00:53]} 34. Qxd5 {[%emt 0:00:18]} Qf6 {[%emt 0:01:05]} 35. Kb2 {[%emt 0:01:01]} Rf2 {[%emt 0:00:30]} 36. b4 {[%emt 0:03:08]} c6 {[%emt 0:01:22]} 37. Qe4+ {[%emt 0:00:34]} Qf5 {[%emt 0:00:14]} 38. Qxf5+ {[%emt 0:01:56]} Rxf5 {[%emt 0:00:08]} 0-1

[Event "GER-ch Youth U10 2020"]
[Site "Willingen"]
[Date "2020.10.30"]
[Round "6.24"]
[White "Deiringer, Julius"]
[Black "Huang, Luca Hanson"]
[Result "1-0"]
[ECO "B43"]
[WhiteElo "1332"]
[BlackElo "1570"]
[Annotator "NA RC"]
[PlyCount "71"]
[EventDate "2020.10.27"]
[EventType "swiss"]
[EventRounds "7"]
[EventCountry "GER"]
[SourceTitle "playchess.com"]
[Source "ChessBase"]
[SourceQuality "1"]
[TimeControl "40/4500+30:900+30"]

1. e4 {[%emt 0:00:00]} c5 {[%emt 0:00:00]} 2. Nf3 {[%emt 0:00:00]} e6 {[%emt 0:00:00]} 3. Nc3 {[%emt 0:00:00]} a6 {[%emt 0:00:11]} 4. d4 {[%emt 0:00:11]} cxd4 {[%emt 0:00:18]} 5. Nxd4 {[%emt 0:00:09]} Qc7 {[%emt 0:00:11]} 6. g3 {[%emt 0:00:23]} Nf6 {[%emt 0:01:13]} 7. Bg2 {[%emt 0:00:32]} Nc6 {[%emt 0:01:18]} 8. Nb3 {[%emt 0:00:20]} Be7 {[%emt 0:01:00]} 9. O-O {[%emt 0:00:32]} O-O {[%emt 0:01:37]} 10. Be3 {[%emt 0:01:27]} b5 {[%emt 0:00:22]} 11. a3 {[%emt 0:00:38]} Bb7 {[%emt 0:01:45]} 12. f4 {[%emt 0:03:34]} d6 {[%emt 0:02:07]} 13. Kh1 {[%emt 0:00:50]} Rfd8 {[%emt 0:04:21]} 14. g4 {[%emt 0:00:44]} Rac8 {[%emt 0:10:34]} 15. g5 {[%emt 0:01:02]} Nd7 {[%emt 0:02:22]} 16. Qh5 {[%emt 0:03:35]} Nb6 {[%emt 0:06:08]} 17. Rf3 {[%emt 0:02:19]} g6 {[%emt 0:02:44]} 18. Qh6 {[%emt 0:00:24]} Bf8 {[%emt 0:00:14]} 19. Qh4 {[%emt 0:00:31]} Bg7 {[%emt 0:07:49]} 20. Rh3 {[%emt 0:00:13]} Nc4 {[%emt 0:03:24]} 21. Qxh7+ {[%emt 0:00:54]} Kf8 {[%emt 0:05:11]} 22. Nd1 {[%emt 0:13:39]} Nxe3 {[%emt 0:01:58]} 23. Nxe3 {[%emt 0:00:28]} Bxb2 {[%emt 0:00:13]} 24. Rb1 {[%emt 0:00:07]} Bg7 {[%emt 0:00:21]} 25. Nd5 {[%emt 0:05:35]} exd5 {[%emt 0:01:35]} 26. f5 {[%emt 0:00:11]} Ne7 {[%emt 0:00:14]} 27. f6 {[%emt 0:00:24]} Bxf6 {[%emt 0:03:17]} 28. gxf6 {[%emt 0:00:28]} Ng8 {[%emt 0:00:13]} 29. Qg7+ {[%emt 0:00:12]} Ke8 {[%emt 0:00:22]} 30. Qxg8+ {[%emt 0:00:22]} Kd7 {[%emt 0:00:08]} 31. Qxf7+ {[%emt 0:00:14]} Kc6 {[%emt 0:00:08]} 32. Qxd5+ {[%emt 0:00:43]} Kb6 {[%emt 0:00:16]} 33. Qd4+ {[%emt 0:00:18]} Kc6 {[%emt 0:00:26]} 34. e5+ {[%emt 0:00:24]} Kd7 {[%emt 0:00:37]} 35. Rh7+ {[%emt 0:00:10]} Ke8 {[%emt 0:00:22]} 36. Rxc7 {[%emt 0:01:32]} 1-0